Workbook

Sheet Content
B3: STRUKTŪRINIO VALDŽIOS SEKTORIAUS BALANSO SKAIČIUOKLĖ | E3: STRUCTURAL GENERAL GOVERNMENT BALANCE SPREADSHEET
B5: Versija 1.0 2016-12-05 | E5: Version 1.0 2016-12-05
B7: BENDRAS APRAŠYMAS | E7: GENERAL DESCRIPTION
C9: Faktiniai valdžios sektoriaus (VS) balanso rodikliai netobulai atspindi viešųjų finansų ir fiskalinės politikos būklę, nes yra veikiami laikinų ir ciklinių veiksnių, kuriems fiskalinė politika neturi poveikio. Palyginti daug tokių veiksnių yra ekonominėje aplinkoje. Ekonominio ciklo poveikiai šalinami cikliškai pakoreguotuose VS rodikliuose. Papildomai pakoreguoti pagal kainų ir gamybos struktūros pokyčius bei vienkartinius ir laikinus veiksnius, jie vadinami struktūriniais. | E9: Actual general government (GG) budget balances are imperfect indicators for assessing public finances and fiscal policies, since they are affected by a number of temporary and cyclical factors that are beyond the control of fiscal authorities. Plenty of those are in economic environment. Cyclically adjusted GG indicators removes the economic cycle impacts. Adjusted for one−offs and temporary measures, price and output composition effects GG finance indicators are called structural.
C10: Yra paplitę du struktūrinio deficito skaičiavimo metodai: agreguotas − taikomas Europos Komisijos (EK) ir Finansų ministerijos pagal EK metodiką; detalizuotas − taikomas Europos centrinių bankų, nepriklausomų fiskalinių institucijų pagal ECB metodiką. | E10: There are two frameworks for assessing structural deficits currently in use: aggregated − applied by European Commission (EC) and the Ministry of Finance following EC approach; disaggregated − applied within European System of Central Banks, by independent fiscal institutions following the ECB approach.
C11: Esminė agreguoto EK metodo prielaida yra verslo ciklo ir VS biudžeto bazių ciklų sinchronizacija, todėl korekcija šalina tik verslo ciklo poveikius. Pagal detalizuotą ECB metodą daroma prielaida, kad verslo ciklas ir VS biudžeto bazių ciklai gali kisti asinchroniškai, todėl kartu su verslo ciklo korekcija struktūrinė korekcija atliekama iš dalies, atsižvelgiant į kainų ir gamybos struktūros pokyčius. | E11: A key aggregated EC approach assumption is the synchronisation between output gap and GG budget bases cycles, implying that adjustment removes only business cycle impacts. Disaggregated ECB approach assumes asynchronisation between the output gap and GG budget bases cycles, meaning that on top of cyclical adjustment a part of price and output composition effects is removed.
B13: INSTRUKCIJOS | E13: INSTRUCTIONS
B15: 1) | C15: Nustatomos cikliškai jautrios VS biudžeto pajamų ir išlaidų eilutės. | D15: 1) | E15: Determine cyclically sensitive GG budget tax and expenditure items.
B16: 2) | C16: Kiekvienai šių eilučių priskiriamas bazinis rodiklis. | D16: 2) | E16: For each item in 1) assign a base indicator.
B17: 3) | C17: Ekonometriškai arba pagal fiskalines taisykles nustatomi VS biudžeto ir bazinių rodiklių elastingumai. Šioje skaičiuoklės versijoje taikomi EBPO įvertinti elastingumai Lietuvai pagal EK projektą. | D17: 3) | E17: Econometrically or applying fiscal rules define elasticities between GG budget items and base indicators. In this spreadsheet OECD elasticities calculated within EC project are used.
B18: 4) | C18: Įvertinami bazinių rodiklių atotrūkiai nuo trendų. Šioje skaičiuoklės versijoje taikomas Hodrick ir Prescott filtras su glodinimo parametro reikšme, lygia 30. | D18: 4) | E18: Estimate the gap of each base indicator from his medium-run trend. In this spreadsheet we apply Hodrick and Prescott filter with smoothing parameter set to 30.
B19: 5) | C19: Skaičiuojama svertinė ciklinė komponentė kaip elastingumų ir atotrūkių sandauga, o svoriai yra VS biudžeto rodikliai proc. BVP to meto kainomis. Pajamų eilutės imamos su pliuso ženklu, o išlaidų – su minuso. | D19: 5) | E19: Estimate weighted cyclical component as the product of elasticities and gaps, where the weights are GG budget items as % of GDP at current prices. Revenue items are taken with plus sign, while expenditure with minus.
B21: SUVESTINĖ | E21: SUMMARY
C23: 1 lentelė. Struktūrinis VS balanso rodiklis | E23: Table 1. Structural GG balance indicator
B25: 1. DUOMENYS | E25: 1 . DATA
C27: 2 lentelė. Makroekonominiai rodikliai | E27: Table 2. Macroeconomic indicators
C28: 3 lentelė. VS fiskaliniai rodikliai | E28: Table 3. GG fiscal indicators
C29: 4 lentelė. Ciklo rodikliai | E29: Table 4. Cycle indicators
B31: 2. SKAIČIUOKLĖS | E31: 2. SPREADSHEETS
C33: 5 lentelė. Darbo užmokesčio fondas | E33: Table 5. Wage bill
C34: 6 lentelė. BVP ir likutinis perteklius | E34: Table 6. GDP and GOS
C35: 7 lentelė. Privatus vartojimas | E35: Table 7. Private consumption
C36: 8 lentelė. Bedarbių skaičius | E36: Table 8. Number of unemployed
B38: NUORODOS | E38: REFERENCES
C40: Bouthevillain, C., Cour-Thimann, P., Van Den Dool, G., De Cos, P. H., Langenus, G., Mohr, M., Momigliano, S., Tujula, M. (2001). Cyclically adjusted budget balances: an alternative approach. ECB, WP077.
C41: Girouard, N., André, C. (2005). Measuring cyclically-adjusted budget balances for OECD countries.
C42: Mourre, G., Astarita, C., Princen, S. (2014). Adjusting the budget balance for the business cycle: the EU methodology.
C43: Ši skaičiuoklė taiko Kurt Annen © VBA HP filtro modulį | E43: This spreadsheet is integrated with Kurt Annen © VBA HP filter module

Sheet Summary
A1: ↖ atgal į turinį | back to content
B3: 1 lentelė. Struktūrinis VS balanso rodiklis | I3: Table 1. Structural GG balance indicator
B4: Rodiklis | C4: Žymėjimas | Formulė | D4: Elastingumas | E4: Metai | Years | J4: Indicator
C5: Notation | Formula | D5: Elasticity (ej) | E5: 2015 | F5: 2016 | G5: 2017 | H5: 2018 | I5: 2019
B6: Pajamų mokestis | C6: СС1=e1∙gapPWBR(t)∙D51A | D6: 1.46 | E6: =$D$6*E12*GGfinance!E10/100 -> 0.120490663 | F6: =$D$6*F12*GGfinance!F10/100 -> 0.166928316 | G6: =$D$6*G12*GGfinance!G10/100 -> 0.1667485112 | H6: =$D$6*H12*GGfinance!H10/100 -> 0.1187424631 | I6: =$D$6*I12*GGfinance!I10/100 -> 0.07630506426 | J6: Personal income taxes
B7: Pelno mokestis | C7: СС2=e2∙gapGOSR(t)∙D51B | D7: 1.68 | E7: =$D$7*E13*GGfinance!E11/100 -> -0.07367052976 | F7: =$D$7*F13*GGfinance!F11/100 -> -0.06330613633 | G7: =$D$7*G13*GGfinance!G11/100 -> -0.03732766412 | H7: =$D$7*H13*GGfinance!H11/100 -> -0.0217936832 | I7: =$D$7*I13*GGfinance!I11/100 -> -0.01059990626 | J7: Taxes on corporate profits
B8: Socialinio draudimo įmokos | C8: СС3=e3∙gapPWBR(t)∙D61 | D8: 1 | E8: =GGfinance!E12*Summary!$D$8*Summary!E12/100 -> 0.2554837541 | F8: =GGfinance!F12*Summary!$D$8*Summary!F12/100 -> 0.354826153 | G8: =GGfinance!G12*Summary!$D$8*Summary!G12/100 -> 0.3734713654 | H8: =GGfinance!H12*Summary!$D$8*Summary!H12/100 -> 0.2514296715 | I8: =GGfinance!I12*Summary!$D$8*Summary!I12/100 -> 0.1556914698 | J8: Social security contributions
B9: Netiesioginiai mokesčiai | C9: СС4=e4∙gapCR(t)∙D2 | D9: 1 | E9: =$D$9*GGfinance!E9*Summary!E14/100 -> -0.05858631513 | F9: =$D$9*GGfinance!F9*Summary!F14/100 -> 0.136467784 | G9: =$D$9*GGfinance!G9*Summary!G14/100 -> 0.1561112009 | H9: =$D$9*GGfinance!H9*Summary!H14/100 -> 0.1481376193 | I9: =$D$9*GGfinance!I9*Summary!I14/100 -> 0.1045465554 | J9: Indirect taxes
B10: Bedarbystės išmokos | C10: СС5=e5∙gapUN(t)∙UP | D10: 1 | E10: =GGfinance!E14*Summary!$D$10*Summary!E15/100 -> -0.01180688476 | F10: =GGfinance!F14*Summary!$D$10*Summary!F15/100 -> -0.01199759091 | G10: =GGfinance!G14*Summary!$D$10*Summary!G15/100 -> -0.02941241734 | H10: =GGfinance!H14*Summary!$D$10*Summary!H15/100 -> -0.020465361 | I10: =GGfinance!I14*Summary!$D$10*Summary!I15/100 -> -0.01652853295 | J10: Unemployment benefits
B11: Darbo pajamų ciklas | C11: CCL= СС1+СС3 | E11: =E6+E8 -> 0.375974417 | F11: =F6+F8 -> 0.5217544691 | G11: 0.5402198766 | H11: 0.3701721346 | I11: 0.2319965341 | J11: Labour income cycle
B12: Darbo pajamų atotrūkis | C12: =Cycle!H7 -> gapPWBR(t) | E12: =TRANSPOSE(Cycle!H28:H32) -> 2.140191951 | F12: 2.85414371 | G12: 2.965729948 | H12: 2.027658642 | I12: 1.245531759 | J12: Wage bill gap
B13: Pelno atotrūkis | C13: =Cycle!N7 -> gapGOSR(t) | E13: =TRANSPOSE(Cycle!N28:N32) -> -2.852853689 | F13: -2.252730439 | G13: -1.32419983 | H13: -0.7741168823 | I13: -0.3643003775 | J13: Profits gap
B14: Vartojimo atotrūkis | C14: =Cycle!Q7 -> gapCR(t) | E14: =TRANSPOSE(Cycle!Q28:Q32) -> -0.4976804395 | F14: 1.145326925 | G14: 1.279600007 | H14: 1.204370889 | I14: 0.856938979 | J14: Consumption gap
B15: Bedarbių skaičiaus atotrūkis | C15: =Cycle!T7 -> gapUN(t) | E15: =TRANSPOSE(Cycle!T28:T32) -> -5.799433723 | F15: -5.697973247 | G15: -8.903518291 | H15: -10.2326805 | I15: -8.264266477 | J15: Number of unemployed gap
B16: Ciklinė biudžeto dedamoji | C16: СС=CC1+CC2+CC3+CC4-CC5 | E16: =E6+E7+E8+E9-E10 -> 0.2555244569 | F16: =F6+F7+F8+F9-F10 -> 0.6069137077 | G16: 0.6884158307 | H16: 0.5169814317 | I16: 0.3424717162 | J16: Cyclical GG component
B17: Struktūrinis VS balansas, detalizuotas metodas | C17: SBdisagg=B9-CC-1off | E17: =GGfinance!E7-GGfinance!E17-Summary!E16 -> -0.712871613 | F17: =GGfinance!F7-GGfinance!F17-Summary!F16 -> -1.172716098 | G17: =GGfinance!G7-GGfinance!G17-Summary!G16 -> -1.626480318 | H17: =GGfinance!H7-GGfinance!H17-Summary!H16 -> 0.2930185683 | I17: =GGfinance!I7-GGfinance!I17-Summary!I16 -> 0.5575282838 | J17: Structural balance, disaggregated approach
B18: Struktūrinis VS balansas, agreguotas metodas, IFI | C18: SBaggFI | E18: -0.5463844566 | F18: -0.7015017937 | G18: -1.30013856 | H18: 0.3022201795 | I18: 0.181223882 | J18: Structural balance, aggregated approach, IFI
B19: Struktūrinis VS balansas, agreguotas metodas, FM | C19: SBaggFM | E19: -0.58191726 | F19: -0.8550044082 | G19: -1.250275662 | H19: 0.1253003312 | I19: 0.04622381463 | J19: Structural balance, aggregated approach, MoF
F21: Šaltiniai: | H21: Sources:
F22: Finansų ministerija (FM) | H22: Ministry of Finance (MoF)
F23: Fiskalinė institucija (IFI) | H23: Independent fiscal institution (IFI)
F24: Europos Komisija (EK) | H24: European Commission (EC)
E27: Detalizuotas metodas, IFI
E28: Agreguotas metodas, IFI
E29: Agreguotas metodas, FM

Sheet Macro
A1: ↖ atgal į turinį | back to content
B3: 2 lentelė. Makroekonominiai rodikliai | N3: Table 2. Macroeconomic indicators
B4: Metai | C4: Nominalus BVP | D4: Realus BVP | E4: Nominalus namų ūkių vartojimas | F4: Realus namų ūkių vartojimas | G4: Nominalus likutinis perteklius | H4: Realus likutinis perteklius | I4: Nominalus darbo užmokesčio fondas (DUF) | J4: Nominalus DUF viešame sektoriuje (OPQ) | K4: Nominalus DUF privačiame sektoriuje | L4: Realus darbo užmokesčio fondas | M4: Realus DUF privačiame sektoriuje | N4: Bedarbių skaičius
B5: Year | C5: Nominal GDP | D5: Real GDP | E5: Nominal Private Consumption | F5: Real Private Consumption | G5: Nominal gross operating surplus | H5: Real gross operating surplus | I5: Nominal Wage Bill | J5: Nominal Public Sector Wage Bill | K5: Nominal Private Sector Wage Bill | L5: Real Wage Bill | M5: Real Private Sector Wage Bill | N5: Number of unemployed
B6: 1 | C6: mil. € | D6: mil. € | E6: mil. € | F6: mil. € | G6: mil. € | H6: mil. € | I6: mil. € | J6: mil. € | K6: mil. € | L6: mil. € | M6: mil. € | N6: 1000
B7: t | C7: YN(t) | D7: YR(t) | E7: CN(t) | F7: CR(t) | G7: GOSN(t) | H7: GOSR(t)=COSN(t)∙YR(t)/YN(t) | I7: WBN(t) | J7: VWBN(t) | K7: PWBN(t)=WBN(t)-VWBN(t) | L7: WBR(t)=WBN(t)∙ CR(t)/CN(t) | M7: PWBR(t)=PWBN(t)∙ CR(t)/CN(t) | N7: UN(t)
B8: 1995 | C8: 7668.962251 | D8: 14584.2 | E8: 4889.703749 | F8: 8739.6 | G8: 3266.755277 | H8: =G8*D8/C8 -> 6212.445798 | I8: 3530.923278 | J8: 743.2786598 | K8: =I8-J8 -> 2787.644619 | L8: =I8*F8/E8 -> 6310.98706 | M8: =K8*F8/E8 -> 4982.48977 | N8: 486.9995
B9: 1996 | C9: 9595.071019 | D9: 15335.3 | E9: 6145.216106 | F9: 9292.1 | G9: 3853.595501 | H9: =G9*D9/C9 -> 6159.00007 | I9: 4726.637596 | J9: 1021.648419 | K9: =I9-J9 -> 3704.989177 | L9: =I9*F9/E9 -> 7147.086197 | M9: =K9*F9/E9 -> 5602.265135 | N9: 441.1335
B10: 1997 | C10: 11696.76386 | D10: 16607 | E10: 7162.199977 | F10: 9816.1 | G10: 4298.247325 | H10: 6102.627545 | I10: 5905.26571 | J10: 1302.399075 | K10: 4602.866635 | L10: 8093.418073 | M10: 6308.424691 | N10: 322.21575
B11: 1998 | C11: 13049.72282 | D11: 17847 | E11: 7971.163993 | F11: 10285.6 | G11: 4551.008726 | H11: 6224.028958 | I11: 6826.902063 | J11: 1648.454171 | K11: 5178.447893 | L11: 8809.100393 | M11: 6682.015788 | N11: 221.57475
B12: 1999 | C12: 12714.37599 | D12: 17644.6 | E12: 8240.099189 | F12: 10788.2 | G12: 4324.318612 | H12: 6001.149582 | I12: 6828.956506 | J12: 1679.296339 | K12: 5149.660167 | L12: 8940.687107 | M12: 6742.098917 | N12: 244.81
B13: 2000 | C13: 13375.32639 | D13: 18320.7 | E13: 8665.157184 | F13: 11537.8 | G13: 5310.656471 | H13: 7274.210822 | I13: 6509.190181 | J13: 1586.676587 | K13: 4922.513594 | L13: 8667.094304 | M13: 6554.408205 | N13: 268.7375
B14: 2001 | C14: 14198.11428 | D14: 19516 | E14: 9244.381158 | F14: 12026.3 | G14: 5883.367356 | H14: 8086.975145 | I14: 6688.311475 | J14: 1632.439039 | K14: 5055.872436 | L14: 8701.030271 | M14: 6577.340077 | N14: 280.975
B15: 2002 | C15: 15201.74861 | D15: 20835.4 | E15: 9759.144197 | F15: 12752.2 | G15: 6137.056323 | H15: 8411.402306 | I15: 7283.833464 | J15: 1704.380577 | K15: 5579.452887 | L15: 9517.730164 | M15: 7290.62894 | N15: 211.975
B16: 2003 | C16: 16668.7 | D16: 23031.1 | E16: 10696 | F16: 14198.6 | G16: 6714.292201 | H16: 9277.120298 | I16: 8107.319764 | J16: 1782.7 | K16: 6324.619764 | L16: 10762.20927 | M16: 8395.731692 | N16: 191.05
B17: 2004 | C17: 18237.4 | D17: 24539.7 | E17: 11836.1 | F17: 15738.1 | G17: 7394.2148 | H17: 9949.434291 | I17: 8982.778376 | J17: 1963.7 | K17: 7019.078376 | L17: 11944.12555 | M17: 9333.053742 | N17: 166.515
B18: 2005 | C18: 21002.3 | D18: 26436.1 | E18: 13541.4 | F18: 17589.6 | G18: 8610.506738 | H18: 10838.25187 | I18: 10313.35691 | J18: 2144.5 | K18: 8168.856911 | L18: 13396.53379 | M18: 10610.93576 | N18: 126.505
B19: 2006 | C19: 24079.2 | D19: 28393.9 | E19: 15457.5 | F19: 19182.1 | G19: 9336.483959 | H19: 11009.46842 | I19: 12368.54398 | J19: 2501.4 | K19: 9867.143977 | L19: 15348.83697 | M19: 12244.70597 | N19: 83.68
B20: 2007 | C20: 29040.6 | D20: 31542 | E20: 18393.6 | F20: 21556.1 | G20: 11643.52814 | H20: 12646.4386 | I20: 14427.72333 | J20: 2855.4 | K20: 11572.32333 | L20: 16908.35111 | M20: 13562.00847 | N20: 59.255
B21: 2008 | C21: 32696.2 | D21: 32371 | E21: 21182.7 | F21: 22384 | G21: 12947.88757 | H21: 12819.10646 | I21: 16299.66381 | J21: 3459.5 | K21: 12840.16381 | L21: 17224.04012 | M21: 13568.34713 | N21: 84.28
B22: 2009 | C22: 26934.8 | D22: 27575.5 | E22: 18280.2 | F22: 18513.9 | G22: 10717.40416 | H22: 10972.33981 | I22: 13600.20461 | J22: 3393.7 | K22: 10206.50461 | L22: 13774.07403 | M22: 10336.98787 | N22: 207.7025
B23: 2010 | C23: 28027.6 | D23: 28027.6 | E23: 17882 | F23: 17882 | G23: 12272.51685 | H23: 12272.51685 | I23: 12854.2614 | J23: 3085.1 | K23: 9769.161403 | L23: 12854.2614 | M23: 9769.161403 | N23: 268.8675
B24: 2011 | C24: 31275.3 | D24: 29723.1 | E24: 19471.4 | F24: 18698.7 | G24: 14214.46306 | H24: 13508.99614 | I24: 13744.9116 | J24: 3203.5 | K24: 10541.4116 | L24: 13199.46067 | M24: 10123.08787 | N24: 225.5275
B25: 2012 | C25: 33348.4 | D25: 30863 | E25: 20690.5 | F25: 19274.5 | G25: 15354.82072 | H25: 14210.45183 | I25: 14598.89976 | J25: 3263.5 | K25: 11335.39976 | L25: 13599.79185 | M25: 10559.63667 | N25: 193.5975
B26: 2013 | C26: 35002.1 | D26: 31945.3 | E26: 21791.5 | F26: 20100.4 | G26: 15924.95698 | H26: 14534.20018 | I26: 15580.33888 | J26: 3351.7 | K26: 12228.63888 | L26: 14371.24767 | M26: 11279.65183 | N26: 168.075
B27: 2014 | C27: 36590 | D27: 33061.8 | E27: 22761.9 | F27: 20973.6 | G27: 16208.52439 | H27: 14645.61333 | I27: 16639.53225 | J27: 3469.9 | K27: 13169.63225 | L27: 15332.23911 | M27: 12134.95354 | N27: 153.6525
B28: 2015 | C28: 37330.50434 | D28: 33649.84073 | E28: 23486.33134 | F28: 21836.8 | G28: 15662.68012 | H28: 14118.39194 | I28: 17735.84335 | J28: 3602.1 | K28: 14133.74335 | L28: 16490.18991 | M28: 13141.07863 | N28: 129.8575
B29: 2016 | C29: 38475.28404 | D29: 34424.14134 | E29: 24953.0664 | F29: 23039.24614 | G29: 16142.9929 | H29: 14443.26359 | I29: 18829.65405 | J29: 3742.5819 | K29: 15087.07215 | L29: 17385.47991 | M29: 13929.94205 | N29: 119.217974
B30: 2017 | C30: 40394.89854 | D30: 35363.88255 | E30: 26560.94725 | F30: 23996.17778 | G30: 16948.40146 | H30: 14837.54881 | I30: 20151.70531 | J30: 3881.05743 | K30: 16270.64788 | L30: 18205.82296 | M30: 14699.52693 | N30: 105.8493343
B31: 2018 | C31: 42340.93426 | D31: 36238.92811 | E31: 28321.60318 | F31: 24963.75127 | G31: 17764.89552 | H31: 15204.68981 | I31: 21422.85595 | J31: 4013.013383 | K31: 17409.84257 | L31: 18882.92989 | M31: 15345.70542 | N31: 96.7919028
B32: 2019 | C32: 44380.48782 | D32: 37137.16462 | E32: 30120.31495 | F32: 25902.73212 | G32: 18620.62666 | H32: 15581.56099 | I32: 22778.92273 | J32: 4149.455838 | K32: 18629.46689 | L32: 19589.31487 | M32: 16020.88462 | N32: 93.07259618
F34: Šaltiniai: | H34: Sources:
F35: Lietuvos statistikos departamentas | H35: Statistics Lithuania
F36: Finansų ministerija | H36: Ministry of Finance
F37: Fiskalinė institucija | H37: Independent fiscal institution
F38: ERS - ekonominės raidos scenarijus | H38: EDS - economic development scenario

Sheet GGfinance
A1: ↖ atgal į turinį | back to content
B3: 3 lentelė. VS fiskaliniai rodikliai | J3: Table 3. GG fiscal indicators
B4: Rodiklis | C4: Žymėjimas | Formulė | D4: Faktas | Actuals | F4: 2016 LSP | 2016 SPoL | J4: Indicator
C5: Notation | Formula | D5: =2015 -> 2015 | F5: =D5+1 -> 2016 | G5: =F5+1 -> 2017 | H5: =G5+1 -> 2018 | I5: 2019
E6: Proc. BVP | % of GDP
B7: Grynasis skolinimas (+) / grynasis skolinimasis (-), iš jo | C7: B9=TR-TE | D7: =D8-D13 -> -75.92999996 | E7: -0.2033993414 | F7: -0.5998023901 | G7: -0.941064487 | H7: 0.8 | I7: 0.9 | J7: Net lending (+) /net borrowing (-), of which
B8: Visos pajamos, iš jų | C8: TR | D8: 13013.74061 | E8: =D8/Macro!$C$28*100 -> 34.86087543 | F8: 35.26930361 | G8: 35.60138686 | H8: 35.7 | I8: 35.3 | J8: Total revenues, of which
B9: pajamos iš netiesioginių mokesčių | C9: D2 | D9: 4394.5 | E9: =D9/Macro!$C$28*100 -> 11.77187417 | F9: 11.91518169 | G9: 12.2 | H9: 12.3 | I9: 12.2 | J9: indirect taxes
B10: pajamų mokestis | C10: D51A | D10: 1439.5 | E10: =D10/Macro!$C$28*100 -> 3.856095773 | F10: 4.005911217 | G10: 3.851035362 | H10: 4.011052576 | I10: 4.196098757 | J10: personal income taxes
B11: pelno mokestis | C11: D51B | D11: 573.811 | E11: =D11/Macro!$C$28*100 -> 1.537110227 | F11: 1.672735599 | G11: 1.677907457 | H11: 1.67577155 | I11: 1.731941112 | J11: taxes on corporate profits
B12: socialinio draudimo įmokos | C12: D61 | D12: 4456.3 | E12: =D12/Macro!$C$28*100 -> 11.93742243 | F12: 12.43196521 | G12: 12.59289861 | H12: 12.4 | I12: 12.5 | J12: social security contributions
B13: Visos išlaidos, iš jų | C13: TE | D13: 13089.67061 | E13: =D13/Macro!$C$28*100 -> 35.06427477 | F13: 35.869106 | G13: 36.54245135 | H13: 34.9 | I13: 34.4 | J13: Total expenditures, of which
B14: nedarbo išmokos | C14: UP | D14: 76 | E14: =D14/Macro!$C$28*100 -> 0.2035868557 | F14: 0.2105589196 | G14: 0.330346009 | H14: 0.2 | I14: 0.2 | J14: unemployment benefits
B15: Palūkanos, mokamos | C15: D41 | D15: 569.1709138 | E15: =D15/Macro!$C$28*100 -> 1.524680483 | F15: 1.452711956 | G15: 1.279415993 | H15: 1 | I15: 1 | J15: Interest, payable
B16: VS pirminis balansas | C16: PB=B9+D41 | D16: =D7+D15 -> 493.2409138 | E16: =D16/Macro!$C$28*100 -> 1.321281141 | F16: =F7+F15 -> 0.8529095661 | G16: =G7+G15 -> 0.3383515062 | H16: =H7+H15 -> 1.8 | I16: =I7+I15 -> 1.9 | J16: Primary balance
B17: Vienkartinės ir kitos laikinosios priemonės | C17: 1off | D17: 94.8 | E17: =D17/Macro!$C$28*100 -> 0.2539478147 | F17: -0.034 | G17: -0.003 | H17: -0.01 | I17: 0 | J17: One-off and temporary measures
F19: Šaltiniai: | H19: Sources:
F20: Lietuvos statistikos departamentas | H20: Statistics Lithuania
F21: Finansų ministerija | H21: Ministry of Finance
F22: Fiskalinė institucija | H22: Independent fiscal institution
F23: LSP - Lietuvos stabilumo programa | H23: SPoL - Stability Programme of Lithuania
F24: Dėmesio: langeliai su formulėmis, atnaujinami tik spalvoti langeliai | H24: Warning: cells with formulas, data inputs are marked with coloured cells

Sheet Cycle
A1: ↖ atgal į turinį | back to content
B3: 4 lentelė. Ciklo rodikliai | R3: Table 4. Cycle indicators
B4: Metai | C4: =Wbill!C4 -> Realus darbo užmokesčio fondas | F4: =Wbill!G4 -> Realus DUF privačiame sektoriuje | I4: =GDP!C4 -> Realus BVP | L4: =GDP!G4 -> Realus likutinis perteklius | O4: =PCons!C4 -> Realus namų ūkių vartojimas | R4: =UN!C4 -> Bedarbių skaičius
B5: Year | C5: =Wbill!C5 -> Real Wage Bill | F5: =Wbill!G5 -> Real Private Sector Wage Bill | I5: =GDP!C5 -> Real GDP | L5: =GDP!G5 -> Real gross operating surplus | O5: =PCons!C5 -> Real Private Consumption | R5: =UN!C5 -> Number of unemployed
B6: 1 | C6: mil. € | E6: % | F6: mil. € | H6: % | I6: mil. € | K6: % | L6: mil. € | N6: % | O6: mil. € | Q6: % | R6: =UN!C6 -> 1000 | T6: %
B7: t | C7: =Wbill!C7 -> WBR(t) | D7: =Wbill!F7 -> WBR*(t) | E7: gapWBR(t) | F7: =Wbill!G7 -> PWBR(t) | G7: =Wbill!J7 -> PWBR*(t) | H7: gapPWBR(t) | I7: =GDP!C7 -> YR(t) | J7: =GDP!F7 -> YR*(t) | K7: =CONCATENATE("gap",I7) -> gapYR(t) | L7: =GDP!G7 -> GOSR(t) | M7: =GDP!J7 -> GOSR*(t) | N7: =CONCATENATE("gap",L7) -> gapGOSR(t) | O7: =PCons!C7 -> CR(t) | P7: =PCons!F7 -> CR*(t) | Q7: =CONCATENATE("gap",O7) -> gapCR(t) | R7: =UN!C7 -> UN(t) | S7: =UN!F7 -> UN*(t) | T7: =CONCATENATE("gap",R7) -> gapUN(t)
B8: 1995 | C8: =Wbill!C8 -> 6310.98706 | D8: =Wbill!F8 -> 6663.53861 | E8: =C8/D8*100-100 -> -5.290755726 | F8: =Wbill!G8 -> 4982.48977 | G8: =Wbill!J8 -> 5208.229382 | H8: =F8/G8*100-100 -> -4.334287048 | I8: =GDP!C8 -> 14584.2 | J8: =GDP!F8 -> 14593.88685 | K8: =I8/J8*100-100 -> -0.06637608645 | L8: =GDP!G8 -> 6212.445798 | M8: =GDP!J8 -> 5768.533625 | N8: =L8/M8*100-100 -> 7.695407559 | O8: =PCons!C8 -> 8739.6 | P8: =PCons!F8 -> 8637.083881 | Q8: =O8/P8*100-100 -> 1.186929758 | R8: =UN!C8 -> 486.9995 | S8: =UN!F8 -> 454.1014648 | T8: =R8/S8*100-100 -> 7.244644147
B9: 1996 | C9: =Wbill!C9 -> 7147.086197 | D9: =Wbill!F9 -> 7135.762314 | E9: =C9/D9*100-100 -> 0.1586919847 | F9: =Wbill!G9 -> 5602.265135 | G9: =Wbill!J9 -> 5543.320504 | H9: =F9/G9*100-100 -> 1.063345176 | I9: =GDP!C9 -> 15335.3 | J9: =GDP!F9 -> 15400.32634 | K9: =I9/J9*100-100 -> -0.4222400321 | L9: =GDP!G9 -> 6159.00007 | M9: =GDP!J9 -> 5987.352567 | N9: =L9/M9*100-100 -> 2.866834735 | O9: =PCons!C9 -> 9292.1 | P9: =PCons!F9 -> 9158.986758 | Q9: =O9/P9*100-100 -> 1.453362102 | R9: =UN!C9 -> 441.1335 | S9: =UN!F9 -> 393.6807738 | T9: =R9/S9*100-100 -> 12.0536052
B10: 1997 | C10: =Wbill!C10 -> 8093.418073 | D10: =Wbill!F10 -> 7627.617594 | E10: 6.106762343 | F10: =Wbill!G10 -> 6308.424691 | G10: =Wbill!J10 -> 5891.26311 | H10: 7.081021058 | I10: =GDP!C10 -> 16607 | J10: =GDP!F10 -> 16250.96897 | K10: 2.190829572 | L10: =GDP!G10 -> 6102.627545 | M10: =GDP!J10 -> 6229.848364 | N10: -2.042117417 | O10: =PCons!C10 -> 9816.1 | P10: =PCons!F10 -> 9716.246824 | Q10: 1.027692867 | R10: =UN!C10 -> 322.21575 | S10: =UN!F10 -> 342.0960258 | T10: -5.811314444
B11: 1998 | C11: =Wbill!C11 -> 8809.100393 | D11: =Wbill!F11 -> 8124.311394 | E11: 8.428886665 | F11: =Wbill!G11 -> 6682.015788 | G11: =Wbill!J11 -> 6244.778789 | H11: 7.001641103 | I11: =GDP!C11 -> 17847 | J11: =GDP!F11 -> 17145.41963 | K11: 4.091940499 | L11: =GDP!G11 -> 6224.028958 | M11: =GDP!J11 -> 6520.423103 | N11: -4.545627502 | O11: =PCons!C11 -> 10285.6 | P11: =PCons!F11 -> 10320.48616 | Q11: -0.3380282712 | R11: =UN!C11 -> 221.57475 | S11: =UN!F11 -> 299.7950244 | T11: -26.0912517
B12: 1999 | C12: =Wbill!C12 -> 8940.687107 | D12: =Wbill!F12 -> 8624.371563 | E12: 3.667693837 | F12: =Wbill!G12 -> 6742.098917 | G12: =Wbill!J12 -> 6609.947211 | H12: 1.999285337 | I12: =GDP!C12 -> 17644.6 | J12: =GDP!F12 -> 18095.86557 | K12: -2.493749586 | L12: =GDP!G12 -> 6001.149582 | M12: =GDP!J12 -> 6883.565813 | N12: -12.8191733 | O12: =PCons!C12 -> 10788.2 | P12: =PCons!F12 -> 10989.5521 | Q12: -1.832213862 | R12: =UN!C12 -> 244.81 | S12: =UN!F12 -> 266.052118 | T12: -7.984194295
B13: 2000 | C13: =Wbill!C13 -> 8667.094304 | D13: =Wbill!F13 -> 9151.183029 | E13: -5.289903211 | F13: =Wbill!G13 -> 6554.408205 | G13: =Wbill!J13 -> 7010.241511 | H13: -6.502390896 | I13: =GDP!C13 -> 18320.7 | J13: =GDP!F13 -> 19142.40157 | K13: -4.292573022 | L13: =GDP!G13 -> 7274.210822 | M13: =GDP!J13 -> 7338.390352 | N13: -0.874572305 | O13: =PCons!C13 -> 11537.8 | P13: =PCons!F13 -> 11744.01887 | Q13: -1.755948012 | R13: =UN!C13 -> 268.7375 | S13: =UN!F13 -> 237.6793565 | T13: 13.06724486
B14: 2001 | C14: =Wbill!C14 -> 8701.030271 | D14: =Wbill!F14 -> 9745.923381 | E14: -10.72133516 | F14: =Wbill!G14 -> 6577.340077 | G14: =Wbill!J14 -> 7479.806468 | H14: -12.06537088 | I14: =GDP!C14 -> 19516 | J14: =GDP!F14 -> 20316.88636 | K14: -3.94197391 | L14: =GDP!G14 -> 8086.975145 | M14: =GDP!J14 -> 7873.395923 | N14: 2.712669652 | O14: =PCons!C14 -> 12026.3 | P14: =PCons!F14 -> 12601.4753 | Q14: -4.564348871 | R14: =UN!C14 -> 280.975 | S14: =UN!F14 -> 211.8900661 | T14: 32.60414004
B15: 2002 | C15: =Wbill!C15 -> 9517.730164 | D15: =Wbill!F15 -> 10441.5508 | E15: -8.847542414 | F15: =Wbill!G15 -> 7290.62894 | G15: =Wbill!J15 -> 8043.872025 | H15: -9.364185349 | I15: =GDP!C15 -> 20835.4 | J15: =GDP!F15 -> 21626.40102 | K15: -3.65757123 | L15: =GDP!G15 -> 8411.402306 | M15: =GDP!J15 -> 8470.21514 | N15: -0.6943487625 | O15: =PCons!C15 -> 12752.2 | P15: =PCons!F15 -> 13575.27022 | Q15: -6.063011674 | R15: =UN!C15 -> 211.975 | S15: =UN!F15 -> 187.6350484 | T15: 12.97196437
B16: 2003 | C16: =Wbill!C16 -> 10762.20927 | D16: =Wbill!F16 -> 11237.29624 | E16: -4.227769309 | F16: =Wbill!G16 -> 8395.731692 | G16: =Wbill!J16 -> 8697.431912 | H16: -3.46884257 | I16: =GDP!C16 -> 23031.1 | J16: =GDP!F16 -> 23047.20244 | K16: -0.06986720112 | L16: =GDP!G16 -> 9277.120298 | M16: =GDP!J16 -> 9111.344247 | N16: 1.819446679 | O16: =PCons!C16 -> 14198.6 | P16: =PCons!F16 -> 14658.05122 | Q16: -3.134463186 | R16: =UN!C16 -> 191.05 | S16: =UN!F16 -> 165.8351709 | T16: 15.20475357
B17: 2004 | C17: =Wbill!C17 -> 11944.12555 | D17: =Wbill!F17 -> 12092.91389 | E17: -1.230376292 | F17: =Wbill!G17 -> 9333.053742 | G17: =Wbill!J17 -> 9401.093257 | H17: -0.7237404507 | I17: =GDP!C17 -> 24539.7 | J17: =GDP!F17 -> 24516.59336 | K17: 0.09424896481 | L17: =GDP!G17 -> 9949.434291 | M17: =GDP!J17 -> 9770.344134 | N17: 1.832997429 | O17: =PCons!C17 -> 15738.1 | P17: =PCons!F17 -> 15804.3786 | Q17: -0.4193686063 | R17: =UN!C17 -> 166.515 | S17: =UN!F17 -> 147.5840425 | T17: 12.82723876
B18: 2005 | C18: =Wbill!C18 -> 13396.53379 | D18: =Wbill!F18 -> 12934.94381 | E18: 3.568550355 | F18: =Wbill!G18 -> 10610.93576 | G18: =Wbill!J18 -> 10088.49502 | H18: 5.178579585 | I18: =GDP!C18 -> 26436.1 | J18: =GDP!F18 -> 25953.79889 | K18: 1.858306425 | L18: =GDP!G18 -> 10838.25187 | M18: =GDP!J18 -> 10418.88894 | N18: 4.025025402 | O18: =PCons!C18 -> 17589.6 | P18: =PCons!F18 -> 16934.16575 | Q18: 3.870484435 | R18: =UN!C18 -> 126.505 | S18: =UN!F18 -> 134.0577798 | T18: -5.633973486
B19: 2006 | C19: =Wbill!C19 -> 15348.83697 | D19: =Wbill!F19 -> 13663.92649 | E19: 12.33108563 | F19: =Wbill!G19 -> 12244.70597 | G19: =Wbill!J19 -> 10671.59206 | H19: 14.74113603 | I19: =GDP!C19 -> 28393.9 | J19: =GDP!F19 -> 27261.21754 | K19: 4.154922479 | L19: =GDP!G19 -> 11009.46842 | M19: =GDP!J19 -> 11028.71215 | N19: -0.174487573 | O19: =PCons!C19 -> 19182.1 | P19: =PCons!F19 -> 17942.63799 | Q19: 6.907914036 | R19: =UN!C19 -> 83.68 | S19: =UN!F19 -> 126.4944343 | T19: -33.84689181
B20: 2007 | C20: =Wbill!C20 -> 16908.35111 | D20: =Wbill!F20 -> 14180.26664 | E20: 19.23859782 | F20: =Wbill!G20 -> 13562.00847 | G20: =Wbill!J20 -> 11066.5404 | H20: 22.54966751 | I20: =GDP!C20 -> 31542 | J20: =GDP!F20 -> 28344.20047 | K20: 11.28202411 | L20: =GDP!G20 -> 12646.4386 | M20: =GDP!J20 -> 11582.41184 | N20: 9.186573313 | O20: =PCons!C20 -> 21556.1 | P20: =PCons!F20 -> 18730.33501 | Q20: 15.08656939 | R20: =UN!C20 -> 59.255 | S20: =UN!F20 -> 125.9432865 | T20: -52.95104515
B21: 2008 | C21: =Wbill!C21 -> 17224.04012 | D21: =Wbill!F21 -> 14437.6013 | E21: 19.29987374 | F21: =Wbill!G21 -> 13568.34713 | G21: =Wbill!J21 -> 11240.61353 | H21: 20.70824334 | I21: =GDP!C21 -> 32371 | J21: =GDP!F21 -> 29141.92902 | K21: 11.08049841 | L21: =GDP!G21 -> 12819.10646 | M21: =GDP!J21 -> 12061.3993 | N21: 6.282083342 | O21: =PCons!C21 -> 22384 | P21: =PCons!F21 -> 19235.75366 | Q21: 16.36663889 | R21: =UN!C21 -> 84.28 | S21: =UN!F21 -> 132.5618676 | T21: -36.42213893
B22: 2009 | C22: =Wbill!C22 -> 13774.07403 | D22: =Wbill!F22 -> 14486.33569 | E22: -4.916782787 | F22: =Wbill!G22 -> 10336.98787 | G22: =Wbill!J22 -> 11249.23623 | H22: -8.109424859 | I22: =GDP!C22 -> 27575.5 | J22: =GDP!F22 -> 29704.03704 | K22: -7.165817335 | L22: =GDP!G22 -> 10972.33981 | M22: =GDP!J22 -> 12483.80187 | N22: -12.10738586 | O22: =PCons!C22 -> 18513.9 | P22: =PCons!F22 -> 19497.50695 | Q22: -5.044783177 | R22: =UN!C22 -> 207.7025 | S22: =UN!F22 -> 144.1129372 | T22: 44.12481216
B23: 2010 | C23: =Wbill!C23 -> 12854.2614 | D23: =Wbill!F23 -> 14473.73613 | E23: -11.18905796 | F23: =Wbill!G23 -> 9769.161403 | G23: =Wbill!J23 -> 11227.80588 | H23: -12.99135814 | I23: =GDP!C23 -> 28027.6 | J23: =GDP!F23 -> 30198.47352 | K23: -7.18868627 | L23: =GDP!G23 -> 12272.51685 | M23: =GDP!J23 -> 12898.95451 | N23: -4.85649951 | O23: =PCons!C23 -> 17882 | P23: =PCons!F23 -> 19667.59533 | Q23: -9.078869592 | R23: =UN!C23 -> 268.8675 | S23: =UN!F23 -> 155.7300404 | T23: 72.6497337
B24: 2011 | C24: =Wbill!C24 -> 13199.46067 | D24: =Wbill!F24 -> 14525.70576 | E24: -9.130331512 | F24: =Wbill!G24 -> 10123.08787 | G24: =Wbill!J24 -> 11281.45847 | H24: -10.26791533 | I24: =GDP!C24 -> 29723.1 | J24: =GDP!F24 -> 30731.21047 | K24: -3.280412489 | L24: =GDP!G24 -> 13508.99614 | M24: =GDP!J24 -> 13306.39357 | N24: 1.522595677 | O24: =PCons!C24 -> 18698.7 | P24: =PCons!F24 -> 19873.41319 | Q24: -5.910978556 | R24: =UN!C24 -> 225.5275 | S24: =UN!F24 -> 162.9530496 | T24: 38.40029418
B25: 2012 | C25: =Wbill!C25 -> 13599.79185 | D25: =Wbill!F25 -> 14712.49804 | E25: -7.562999734 | F25: =Wbill!G25 -> 10559.63667 | G25: =Wbill!J25 -> 11465.1349 | H25: -7.897841909 | I25: =GDP!C25 -> 30863 | J25: =GDP!F25 -> 31338.07886 | K25: -1.515979533 | L25: =GDP!G25 -> 14210.45183 | M25: =GDP!J25 -> 13683.06749 | N25: 3.854284439 | O25: =PCons!C25 -> 19274.5 | P25: =PCons!F25 -> 20184.20063 | Q25: -4.506993589 | R25: =UN!C25 -> 193.5975 | S25: =UN!F25 -> 163.8001849 | T25: 18.1912585
B26: 2013 | C26: =Wbill!C26 -> 14371.24767 | D26: =Wbill!F26 -> 15062.61024 | E26: -4.589925386 | F26: =Wbill!G26 -> 11279.65183 | G26: =Wbill!J26 -> 11798.13384 | H26: -4.394610363 | I26: =GDP!C26 -> 31945.3 | J26: =GDP!F26 -> 32022.34319 | K26: -0.2405919956 | L26: =GDP!G26 -> 14534.20018 | M26: =GDP!J26 -> 14010.75774 | N26: 3.736003766 | O26: =PCons!C26 -> 20100.4 | P26: =PCons!F26 -> 20632.6676 | Q26: -2.579732357 | R26: =UN!C26 -> 168.075 | S26: =UN!F26 -> 158.6257829 | T26: 5.956923879
B27: 2014 | C27: =Wbill!C27 -> 15332.23911 | D27: =Wbill!F27 -> 15570.84902 | E27: -1.532414221 | F27: =Wbill!G27 -> 12134.95354 | G27: =Wbill!J27 -> 12273.07403 | H27: -1.12539449 | I27: =GDP!C27 -> 33061.8 | J27: =GDP!F27 -> 32771.07985 | K27: 0.8871241119 | L27: =GDP!G27 -> 14645.61333 | M27: =GDP!J27 -> 14288.28514 | N27: 2.500847288 | O27: =PCons!C27 -> 20973.6 | P27: =PCons!F27 -> 21223.80127 | Q27: -1.178871162 | R27: =UN!C27 -> 153.6525 | S27: =UN!F27 -> 149.2470903 | T27: 2.951755842
B28: 2015 | C28: =Wbill!C28 -> 16490.18991 | D28: =Wbill!F28 -> 16209.73748 | E28: 1.730147843 | F28: =Wbill!G28 -> 13141.07863 | G28: =Wbill!J28 -> 12865.72736 | H28: 2.140191951 | I28: =GDP!C28 -> 33649.84073 | J28: =GDP!F28 -> 33567.52344 | K28: 0.2452289617 | L28: =GDP!G28 -> 14118.39194 | M28: =GDP!J28 -> 14532.99708 | N28: -2.852853689 | O28: =PCons!C28 -> 21836.8 | P28: =PCons!F28 -> 21946.02105 | Q28: -0.4976804395 | R28: =UN!C28 -> 129.8575 | S28: =UN!F28 -> 137.8521437 | T28: -5.799433723
B29: 2016 | C29: =Wbill!C29 -> 17385.47991 | D29: =Wbill!F29 -> 16940.30178 | E29: 2.627923218 | F29: =Wbill!G29 -> 13929.94205 | G29: =Wbill!J29 -> 13543.39412 | H29: 2.85414371 | I29: =GDP!C29 -> 34424.14134 | J29: =GDP!F29 -> 34403.34019 | K29: 0.06046256319 | L29: =GDP!G29 -> 14443.26359 | M29: =GDP!J29 -> 14776.12997 | N29: -2.252730439 | O29: =PCons!C29 -> 23039.24614 | P29: =PCons!F29 -> 22778.35946 | Q29: 1.145326925 | R29: =UN!C29 -> 119.217974 | S29: =UN!F29 -> 126.4214335 | T29: -5.697973247
B30: 2017 | C30: =Wbill!C30 -> 18205.82296 | D30: =Wbill!F30 -> 17726.62023 | E30: 2.703294406 | F30: =Wbill!G30 -> 14699.52693 | G30: =Wbill!J30 -> 14276.13531 | H30: 2.965729948 | I30: =GDP!C30 -> 35363.88255 | J30: =GDP!F30 -> 35272.15489 | K30: 0.2600568622 | L30: =GDP!G30 -> 14837.54881 | M30: =GDP!J30 -> 15036.66429 | N30: -1.32419983 | O30: =PCons!C30 -> 23996.17778 | P30: =PCons!F30 -> 23693.00213 | Q30: 1.279600007 | R30: =UN!C30 -> 105.8493343 | S30: =UN!F30 -> 116.1947557 | T30: -8.903518291
B31: 2018 | C31: =Wbill!C31 -> 18882.92989 | D31: =Wbill!F31 -> 18541.46545 | E31: 1.841625953 | F31: =Wbill!G31 -> 15345.70542 | G31: =Wbill!J31 -> 15040.73074 | H31: 2.027658642 | I31: =GDP!C31 -> 36238.92811 | J31: =GDP!F31 -> 36167.58523 | K31: 0.1972564222 | L31: =GDP!G31 -> 15204.68981 | M31: =GDP!J31 -> 15323.31014 | N31: -0.7741168823 | O31: =PCons!C31 -> 24963.75127 | P31: =PCons!F31 -> 24666.67304 | Q31: 1.204370889 | R31: =UN!C31 -> 96.7919028 | S31: =UN!F31 -> 107.8253237 | T31: -10.2326805
B32: 2019 | C32: =Wbill!C32 -> 19589.31487 | D32: =Wbill!F32 -> 19369.36205 | E32: 1.135570816 | F32: =Wbill!G32 -> 16020.88462 | G32: =Wbill!J32 -> 15823.79423 | H32: 1.245531759 | I32: =GDP!C32 -> 37137.16462 | J32: =GDP!F32 -> 37085.73011 | K32: 0.1386908508 | L32: =GDP!G32 -> 15581.56099 | M32: =GDP!J32 -> 15638.53222 | N32: -0.3643003775 | O32: =PCons!C32 -> 25902.73212 | P32: =PCons!F32 -> 25682.6475 | Q32: 0.856938979 | R32: =UN!C32 -> 93.07259618 | S32: =UN!F32 -> 101.4572976 | T32: -8.264266477
B33: 2020 | C33: =Wbill!C33 -> 20322.12475 | D33: =Wbill!F33 -> 20204.29621 | E33: 0.5831855759 | F33: =Wbill!G33 -> 16725.7703 | G33: =Wbill!J33 -> 16620.13665 | H33: 0.6355762792 | I33: =GDP!C33 -> 38057.66528 | J33: =GDP!F33 -> 38024.73028 | K33: 0.08661469615 | L33: =GDP!G33 -> 15967.77349 | M33: =GDP!J33 -> 15980.89944 | N33: -0.08213525009 | O33: =PCons!C33 -> 26877.03158 | P33: =PCons!F33 -> 26731.72235 | Q33: 0.5435834885 | R33: =UN!C33 -> 93 | S33: =UN!F33 -> 96.86596555 | T33: -3.991046318
B34: 2021 | C34: =Wbill!C34 -> 21082.34807 | D34: =Wbill!F34 -> 21047.31765 | E34: 0.1664365177 | F34: =Wbill!G34 -> 17461.66949 | G34: =Wbill!J34 -> 17430.86287 | H34: 0.1767360616 | I34: =GDP!C34 -> 39000.98194 | J34: =GDP!F34 -> 38984.29573 | K34: 0.04280239423 | L34: =GDP!G34 -> 16363.55885 | M34: =GDP!J34 -> 16346.88353 | N34: 0.102009176 | O34: =PCons!C34 -> 27887.97812 | P34: =PCons!F34 -> 27810.88197 | Q34: 0.2772157719 | R34: =UN!C34 -> 93 | S34: =UN!F34 -> 93.63386369 | T34: -0.6769598741
B35: 2022 | C35: =Wbill!C35 -> 21871.01031 | D35: =Wbill!F35 -> 21904.13214 | E35: -0.1512126874 | F35: =Wbill!G35 -> 18229.94672 | G35: =Wbill!J35 -> 18261.36732 | H35: -0.1720605062 | I35: =GDP!C35 -> 39967.68013 | J35: =GDP!F35 -> 39965.2259 | K35: 0.006140912802 | L35: =GDP!G35 -> 16769.15434 | M35: =GDP!J35 -> 16732.16084 | N35: 0.2210921923 | O35: =PCons!C35 -> 28936.95018 | P35: =PCons!F35 -> 28921.74304 | Q35: 0.05258029832 | R35: =UN!C35 -> 93 | S35: =UN!F35 -> 91.31188093 | T35: 1.848739789
B36: 2023 | C36: =Wbill!C36 -> 22689.17535 | D36: =Wbill!F36 -> 22782.81247 | E36: -0.4109989448 | F36: =Wbill!G36 -> 19032.02655 | G36: =Wbill!J36 -> 19119.35108 | H36: -0.4567337725 | I36: =GDP!C36 -> 40958.33938 | J36: =GDP!F36 -> 40968.95261 | K36: -0.02590554262 | L36: =GDP!G36 -> 17184.80314 | M36: =GDP!J36 -> 17132.54806 | N36: 0.3050046726 | O36: =PCons!C36 -> 30025.37803 | P36: =PCons!F36 -> 30068.88558 | Q36: -0.1446929429 | R36: =UN!C36 -> 93 | S36: =UN!F36 -> 89.49828493 | T36: 3.912605786
B37: 2024 | C37: =Wbill!C37 -> 23537.94684 | D37: =Wbill!F37 -> 23691.60183 | E37: -0.6485631151 | F37: =Wbill!G37 -> 19869.39623 | G37: =Wbill!J37 -> 20012.84649 | H37: -0.7167909139 | I37: =GDP!C37 -> 41973.55363 | J37: =GDP!F37 -> 41997.10273 | K37: -0.05607316502 | L37: =GDP!G37 -> 17610.75441 | M37: =GDP!J37 -> 17544.71333 | N37: 0.3764158434 | O37: =PCons!C37 -> 31154.74575 | P37: =PCons!F37 -> 31258.07772 | Q37: -0.3305768342 | R37: =UN!C37 -> 93 | S37: =UN!F37 -> 87.88623761 | T37: 5.818615663
F39: Šaltiniai: | H39: Sources:
F40: =GGfinance!F20 -> Lietuvos statistikos departamentas | H40: =GGfinance!H20 -> Statistics Lithuania
F41: =GGfinance!F21 -> Finansų ministerija | H41: =GGfinance!H21 -> Ministry of Finance
F42: =GGfinance!F22 -> Fiskalinė institucija | H42: =GGfinance!H22 -> Independent fiscal institution
F43: ERS - ekonominės raidos scenarijus | H43: EDS - economic development scenario

Sheet Wbill
A1: ↖ atgal į turinį | back to content
B3: 5 lentelė. Darbo užmokesčio fondas | H3: Table 5. Wage bill
B4: Metai | C4: =Macro!L4 -> Realus darbo užmokesčio fondas | G4: =Macro!M4 -> Realus DUF privačiame sektoriuje
B5: Year | C5: =Macro!L5 -> Real Wage Bill | G5: =Macro!M5 -> Real Private Sector Wage Bill
B6: 1 | C6: mil. € | D6: % | E6: log | F6: mil. € | G6: mil. € | H6: % | I6: log | J6: mil. €
B7: t | C7: WBR(t) | D7: (WBR(t)/WBR(t-1)-1)∙100 | E7: log(WBR(t) | F7: WBR*(t) | G7: PWBR(t) | H7: (PWBR(t)/PWBR(t-1)-1)∙100 | I7: log(PWBR(t)) | J7: PWBR*(t)
B8: 1995 | C8: =Macro!L8 -> 6310.98706 | E8: =LN(C8) -> 8.750047371 | F8: =EXP(HP(E8:E37,D39)) -> 6663.53861 | G8: =Macro!M8 -> 4982.48977 | I8: =LN(G8) -> 8.513684999 | J8: =EXP(HP(I8:I37,D39)) -> 5208.229382
B9: 1996 | C9: =Macro!L9 -> 7147.086197 | D9: =(C9/C8-1)*100 -> 13.24831012 | E9: =LN(C9) -> 8.874460028 | F9: 7135.762314 | G9: =Macro!M9 -> 5602.265135 | H9: =(G9/G8-1)*100 -> 12.43906948 | I9: =LN(G9) -> 8.630926283 | J9: 5543.320504
B10: 1997 | C10: =Macro!L10 -> 8093.418073 | D10: =(C10/C9-1)*100 -> 13.24080682 | E10: 8.998806427 | F10: 7627.617594 | G10: =Macro!M10 -> 6308.424691 | H10: =(G10/G9-1)*100 -> 12.60489354 | I10: 8.749641272 | J10: 5891.26311
B11: 1998 | C11: =Macro!L11 -> 8809.100393 | D11: 8.842769684 | E11: 9.083540602 | F11: 8124.311394 | G11: =Macro!M11 -> 6682.015788 | H11: 5.922098066 | I11: 8.807174986 | J11: 6244.778789
B12: 1999 | C12: =Macro!L12 -> 8940.687107 | D12: 1.493758815 | E12: 9.098367723 | F12: 8624.371563 | G12: =Macro!M12 -> 6742.098917 | H12: 0.8991766993 | I12: 8.816126567 | J12: 6609.947211
B13: 2000 | C13: =Macro!L13 -> 8667.094304 | D13: -3.060086989 | E13: 9.06728887 | F13: 9151.183029 | G13: =Macro!M13 -> 6554.408205 | H13: -2.783861728 | I13: 8.787893111 | J13: 7010.241511
B14: 2001 | C14: =Macro!L14 -> 8701.030271 | D14: 0.3915495296 | E14: 9.07119672 | F14: 9745.923381 | G14: =Macro!M14 -> 6577.340077 | H14: 0.349869445 | I14: 8.791385699 | J14: 7479.806468
B15: 2002 | C15: =Macro!L15 -> 9517.730164 | D15: 9.386243561 | E15: 9.160911671 | F15: 10441.5508 | G15: =Macro!M15 -> 7290.62894 | H15: 10.84464015 | I15: 8.894345096 | J15: 8043.872025
B16: 2003 | C16: =Macro!L16 -> 10762.20927 | D16: 13.07537709 | E16: 9.283796136 | F16: 11237.29624 | G16: =Macro!M16 -> 8395.731692 | H16: 15.1578521 | I16: 9.035478724 | J16: 8697.431912
B17: 2004 | C17: =Macro!L17 -> 11944.12555 | D17: 10.98209709 | E17: 9.38799485 | F17: 12092.91389 | G17: =Macro!M17 -> 9333.053742 | H17: 11.16426876 | I17: 9.141317544 | J17: 9401.093257
B18: 2005 | C18: =Macro!L18 -> 13396.53379 | D18: 12.16002163 | E18: 9.50275128 | F18: 12934.94381 | G18: =Macro!M18 -> 10610.93576 | H18: 13.69200324 | I18: 9.269640424 | J18: 10088.49502
B19: 2006 | C19: =Macro!L19 -> 15348.83697 | D19: 14.57319634 | E19: 9.638794983 | F19: 13663.92649 | G19: =Macro!M19 -> 12244.70597 | H19: 15.39704171 | I19: 9.412848957 | J19: 10671.59206
B20: 2007 | C20: =Macro!L20 -> 16908.35111 | D20: 10.16047106 | E20: 9.735562927 | F20: 14180.26664 | G20: =Macro!M20 -> 13562.00847 | H20: 10.75813911 | I20: 9.515027668 | J20: 11066.5404
B21: 2008 | C21: =Macro!L21 -> 17224.04012 | D21: 1.867059749 | E21: 9.754061369 | F21: 14437.6013 | G21: =Macro!M21 -> 13568.34713 | H21: 0.04673836187 | I21: 9.515494942 | J21: 11240.61353
B22: 2009 | C22: =Macro!L22 -> 13774.07403 | D22: -20.0299469 | E22: 9.530543411 | F22: 14486.33569 | G22: =Macro!M22 -> 10336.98787 | H22: -23.81542295 | I22: 9.243483797 | J22: 11249.23623
B23: 2010 | C23: =Macro!L23 -> 12854.2614 | D23: -6.67785456 | E23: 9.461430662 | F23: 14473.73613 | G23: =Macro!M23 -> 9769.161403 | H23: -5.49315214 | I23: 9.186985907 | J23: 11227.80588
B24: 2011 | C24: =Macro!L24 -> 13199.46067 | D24: 2.685485052 | E24: 9.48793125 | F24: 14525.70576 | G24: =Macro!M24 -> 10123.08787 | H24: 3.622895028 | I24: 9.222574021 | J24: 11281.45847
B25: 2012 | C25: =Macro!L25 -> 13599.79185 | D25: 3.032935901 | E25: 9.517809767 | F25: 14712.49804 | G25: =Macro!M25 -> 10559.63667 | H25: 4.312407569 | I25: 9.264794151 | J25: 11465.1349
B26: 2013 | C26: =Macro!L26 -> 14371.24767 | D26: 5.672556038 | E26: 9.5729848 | F26: 15062.61024 | G26: =Macro!M26 -> 11279.65183 | H26: 6.818559949 | I26: 9.330755658 | J26: 11798.13384
B27: 2014 | C27: =Macro!L27 -> 15332.23911 | D27: 6.686903395 | E27: 9.637713022 | F27: 15570.84902 | G27: =Macro!M27 -> 12134.95354 | H27: 7.582695974 | I27: 9.403845289 | J27: 12273.07403
B28: 2015 | C28: =Macro!L28 -> 16490.18991 | D28: 7.552391956 | E28: 9.710520932 | F28: 16209.73748 | G28: =Macro!M28 -> 13141.07863 | H28: 8.291132623 | I28: 9.483498376 | J28: 12865.72736
B29: 2016 | C29: =Macro!L29 -> 17385.47991 | D29: 5.429227942 | E29: 9.763390649 | F29: 16940.30178 | G29: =Macro!M29 -> 13929.94205 | H29: 6.00303404 | I29: 9.541795907 | J29: 13543.39412
B30: 2017 | C30: =Macro!L30 -> 18205.82296 | D30: 4.71855285 | E30: 9.809496765 | F30: 17726.62023 | G30: =Macro!M30 -> 14699.52693 | H30: 5.524681109 | I30: 9.59557059 | J30: 14276.13531
B31: 2018 | C31: =Macro!L31 -> 18882.92989 | D31: 3.719177817 | E31: 9.846013613 | F31: 18541.46545 | G31: =Macro!M31 -> 15345.70542 | H31: 4.395913527 | I31: 9.638590937 | J31: 15040.73074
B32: 2019 | C32: =Macro!L32 -> 19589.31487 | D32: 3.740865312 | E32: 9.882739537 | F32: 19369.36205 | G32: =Macro!M32 -> 16020.88462 | H32: 4.399792515 | I32: 9.681648439 | J32: 15823.79423
B33: 2020 | C33: =C32*(1+D33/100) -> 20322.12475 | D33: =D32 -> 3.740865312 | E33: 9.919465461 | F33: 20204.29621 | G33: =G32*(1+H33/100) -> 16725.7703 | H33: =H32 -> 4.399792515 | I33: 9.724705941 | J33: 16620.13665
B34: 2021 | C34: =C33*(1+D34/100) -> 21082.34807 | D34: =D33 -> 3.740865312 | E34: 9.956191385 | F34: 21047.31765 | G34: =G33*(1+H34/100) -> 17461.66949 | H34: =H33 -> 4.399792515 | I34: 9.767763443 | J34: 17430.86287
B35: 2022 | C35: 21871.01031 | D35: 3.740865312 | E35: 9.992917309 | F35: 21904.13214 | G35: 18229.94672 | H35: 4.399792515 | I35: 9.810820945 | J35: 18261.36732
B36: 2023 | C36: 22689.17535 | D36: 3.740865312 | E36: 10.02964323 | F36: 22782.81247 | G36: 19032.02655 | H36: 4.399792515 | I36: 9.853878447 | J36: 19119.35108
B37: 2024 | C37: 23537.94684 | D37: 3.740865312 | E37: 10.06636916 | F37: 23691.60183 | G37: 19869.39623 | H37: 4.399792515 | I37: 9.896935949 | J37: 20012.84649
C39: λ= | D39: 30 | E39: 2020-2024 naudojamas taisyti HP filtro imties kraštų problemą | 2020-2024 used for HP filter's end-points problem
E40: Šaltiniai: | G40: Sources:
E41: =GGfinance!F20 -> Lietuvos statistikos departamentas | G41: =GGfinance!H20 -> Statistics Lithuania
E42: =GGfinance!F21 -> Finansų ministerija | G42: =GGfinance!H21 -> Ministry of Finance
E43: =GGfinance!F22 -> Fiskalinė institucija | G43: =GGfinance!H22 -> Independent fiscal institution
E44: ERS - ekonominės raidos scenarijus | G44: EDS - economic development scenario
E45: Augimo prielaidos | G45: Growth assumptions

Sheet GDP
A1: ↖ atgal į turinį | back to content
B3: 6 lentelė. BVP ir likutinis perteklius | H3: Table 6. GDP and GOS
B4: Metai | C4: =Macro!D4 -> Realus BVP | G4: =Macro!H4 -> Realus likutinis perteklius
B5: Year | C5: =Macro!D5 -> Real GDP | G5: =Macro!H5 -> Real gross operating surplus
B6: 1 | C6: mil. € | D6: % | E6: log | F6: mil. € | G6: mil. € | H6: % | I6: log | J6: mil. €
B7: t | C7: YR(t) | D7: (YR(t)/YR(t-1)-1)∙100 | E7: log(YR(t)) | F7: YR*(t) | G7: GOSR(t) | H7: (GOSR(t)/GOSR(t-1)-1)∙100 | I7: log(GOSR(t)) | J7: GOSR*(t)
B8: 1995 | C8: =Macro!D8 -> 14584.2 | E8: =LN(C8) -> 9.58769403 | F8: =EXP(HP(E8:E37,D39)) -> 14593.88685 | G8: =Macro!H8 -> 6212.445798 | I8: =LN(G8) -> 8.734309946 | J8: =EXP(HP(I8:I37,D39)) -> 5768.533625
B9: 1996 | C9: =Macro!D9 -> 15335.3 | D9: =(C9/C8-1)*100 -> 5.150093937 | E9: =LN(C9) -> 9.637912639 | F9: 15400.32634 | G9: =Macro!H9 -> 6159.00007 | H9: =(G9/G8-1)*100 -> -0.8603009002 | I9: =LN(G9) -> 8.725669717 | J9: 5987.352567
B10: 1997 | C10: =Macro!D10 -> 16607 | D10: =(C10/C9-1)*100 -> 8.292632032 | E10: 9.717579572 | F10: 16250.96897 | G10: =Macro!H10 -> 6102.627545 | H10: -0.91528697 | I10: 8.716474703 | J10: 6229.848364
B11: 1998 | C11: =Macro!D11 -> 17847 | D11: 7.466730897 | E11: 9.789590706 | F11: 17145.41963 | G11: =Macro!H11 -> 6224.028958 | H11: 1.989330193 | I11: 8.736172718 | J11: 6520.423103
B12: 1999 | C12: =Macro!D12 -> 17644.6 | D12: -1.13408416 | E12: 9.778185067 | F12: 18095.86557 | G12: =Macro!H12 -> 6001.149582 | H12: -3.580950166 | I12: 8.699706327 | J12: 6883.565813
B13: 2000 | C13: =Macro!D13 -> 18320.7 | D13: 3.831767226 | E13: 9.815786847 | F13: 19142.40157 | G13: =Macro!H13 -> 7274.210822 | H13: 21.21362286 | I13: 8.892090608 | J13: 7338.390352
B14: 2001 | C14: =Macro!D14 -> 19516 | D14: 6.524314027 | E14: 9.878989921 | F14: 20316.88636 | G14: =Macro!H14 -> 8086.975145 | H14: 11.17323024 | I14: 8.99801004 | J14: 7873.395923
B15: 2002 | C15: =Macro!D15 -> 20835.4 | D15: 6.760606682 | E15: 9.944408742 | F15: 21626.40102 | G15: =Macro!H15 -> 8411.402306 | H15: 4.01172447 | I15: 9.037343482 | J15: 8470.21514
B16: 2003 | C16: =Macro!D16 -> 23031.1 | D16: 10.5383146 | E16: 10.04460076 | F16: 23047.20244 | G16: =Macro!H16 -> 9277.120298 | H16: 10.29219576 | I16: 9.135306465 | J16: 9111.344247
B17: 2004 | C17: =Macro!D17 -> 24539.7 | D17: 6.550273326 | E17: 10.10804749 | F17: 24516.59336 | G17: =Macro!H17 -> 9949.434291 | H17: 7.247011695 | I17: 9.205270973 | J17: 9770.344134
B18: 2005 | C18: =Macro!D18 -> 26436.1 | D18: 7.727885834 | E18: 10.18248578 | F18: 25953.79889 | G18: =Macro!H18 -> 10838.25187 | H18: 8.933347867 | I18: 9.290836995 | J18: 10418.88894
B19: 2006 | C19: =Macro!D19 -> 28393.9 | D19: 7.405782245 | E19: 10.25392961 | F19: 27261.21754 | G19: =Macro!H19 -> 11009.46842 | H19: 1.579743225 | I19: 9.306510947 | J19: 11028.71215
B20: 2007 | C20: =Macro!D20 -> 31542 | D20: 11.08724057 | E20: 10.35907527 | F20: 28344.20047 | G20: =Macro!H20 -> 12646.4386 | H20: 14.8687486 | I20: 9.445130921 | J20: 11582.41184
B21: 2008 | C21: =Macro!D21 -> 32371 | D21: 2.628241709 | E21: 10.38501824 | F21: 29141.92902 | G21: =Macro!H21 -> 12819.10646 | H21: 1.365347719 | I21: 9.458692029 | J21: 12061.3993
B22: 2009 | C22: =Macro!D22 -> 27575.5 | D22: -14.81418554 | E22: 10.22468298 | F22: 29704.03704 | G22: =Macro!H22 -> 10972.33981 | H22: -14.40636017 | I22: 9.303132822 | J22: 12483.80187
B23: 2010 | C23: =Macro!D23 -> 28027.6 | D23: 1.63949883 | E23: 10.24094502 | F23: 30198.47352 | G23: =Macro!H23 -> 12272.51685 | H23: 11.84958782 | I23: 9.415117639 | J23: 12898.95451
B24: 2011 | C24: =Macro!D24 -> 29723.1 | D24: 6.049394169 | E24: 10.2996798 | F24: 30731.21047 | G24: =Macro!H24 -> 13508.99614 | H24: 10.07518917 | I24: 9.511111123 | J24: 13306.39357
B25: 2012 | C25: =Macro!D25 -> 30863 | D25: 3.83506431 | E25: 10.33731333 | F25: 31338.07886 | G25: =Macro!H25 -> 14210.45183 | H25: 5.192507894 | I25: 9.561733017 | J25: 13683.06749
B26: 2013 | C26: =Macro!D26 -> 31945.3 | D26: 3.506788063 | E26: 10.37178034 | F26: 32022.34319 | G26: =Macro!H26 -> 14534.20018 | H26: 2.278241064 | I26: 9.584259784 | J26: 14010.75774
B27: 2014 | C27: =Macro!D27 -> 33061.8 | D27: 3.495036829 | E27: 10.40613382 | F27: 32771.07985 | G27: =Macro!H27 -> 14645.61333 | H27: 0.766558521 | I27: 9.591896138 | J27: 14288.28514
B28: 2015 | C28: =Macro!D28 -> 33649.84073 | D28: 1.778610741 | E28: 10.4237636 | F28: 33567.52344 | G28: =Macro!H28 -> 14118.39194 | H28: -3.599858759 | I28: 9.555233619 | J28: 14532.99708
B29: 2016 | C29: =Macro!D29 -> 34424.14134 | D29: 2.301052823 | E29: 10.44651338 | F29: 34403.34019 | G29: =Macro!H29 -> 14443.26359 | H29: 2.301052823 | I29: 9.577983397 | J29: 14776.12997
B30: 2017 | C30: =Macro!D30 -> 35363.88255 | D30: 2.729890073 | E30: 10.47344631 | F30: 35272.15489 | G30: =Macro!H30 -> 14837.54881 | H30: 2.729890073 | I30: 9.604916329 | J30: 15036.66429
B31: 2018 | C31: =Macro!D31 -> 36238.92811 | D31: 2.474404662 | E31: 10.49788918 | F31: 36167.58523 | G31: =Macro!H31 -> 15204.68981 | H31: 2.474404662 | I31: 9.629359199 | J31: 15323.31014
B32: 2019 | C32: =Macro!D32 -> 37137.16462 | D32: 2.478650886 | E32: 10.52237349 | F32: 37085.73011 | G32: =Macro!H32 -> 15581.56099 | H32: 2.478650886 | I32: 9.653843506 | J32: 15638.53222
B33: 2020 | C33: =C32*(1+D33/100) -> 38057.66528 | D33: =D32 -> 2.478650886 | E33: 10.5468578 | F33: 38024.73028 | G33: =G32*(1+H33/100) -> 15967.77349 | H33: =H32 -> 2.478650886 | I33: 9.678327813 | J33: 15980.89944
B34: 2021 | C34: =C33*(1+D34/100) -> 39000.98194 | D34: =D33 -> 2.478650886 | E34: 10.5713421 | F34: 38984.29573 | G34: =G33*(1+H34/100) -> 16363.55885 | H34: =H33 -> 2.478650886 | I34: 9.70281212 | J34: 16346.88353
B35: 2022 | C35: 39967.68013 | D35: 2.478650886 | E35: 10.59582641 | F35: 39965.2259 | G35: =G34*(1+H35/100) -> 16769.15434 | H35: 2.478650886 | I35: 9.727296427 | J35: 16732.16084
B36: 2023 | C36: 40958.33938 | D36: 2.478650886 | E36: 10.62031072 | F36: 40968.95261 | G36: =G35*(1+H36/100) -> 17184.80314 | H36: 2.478650886 | I36: 9.751780734 | J36: 17132.54806
B37: 2024 | C37: 41973.55363 | D37: 2.478650886 | E37: 10.64479502 | F37: 41997.10273 | G37: =G36*(1+H37/100) -> 17610.75441 | H37: 2.478650886 | I37: 9.776265041 | J37: 17544.71333
C39: λ= | D39: 30 | E39: 2020-2024 naudojamas taisyti HP filtro imties kraštų problemą | 2020-2024 used for HP filter's end-points problem
E40: Šaltiniai: | G40: Sources:
E41: =GGfinance!F20 -> Lietuvos statistikos departamentas | G41: =GGfinance!H20 -> Statistics Lithuania
E42: =GGfinance!F21 -> Finansų ministerija | G42: =GGfinance!H21 -> Ministry of Finance
E43: =GGfinance!F22 -> Fiskalinė institucija | G43: =GGfinance!H22 -> Independent fiscal institution
E44: ERS - ekonominės raidos scenarijus | G44: EDS - economic development scenario
E45: Augimo prielaidos | G45: Growth assumptions

Sheet PCons
A1: ↖ atgal į turinį | back to content
B3: 7 lentelė. Privatus vartojimas | D3: Table 7. Private consumption
B4: Metai | C4: =Macro!F4 -> Realus namų ūkių vartojimas
B5: Year | C5: =Macro!F5 -> Real Private Consumption
B6: 1 | C6: mil. € | D6: % | E6: log | F6: mil. €
B7: t | C7: CR(t) | D7: (CR(t)/CR(t-1)-1)∙100 | E7: log(CR(t)) | F7: CR*(t)
B8: 1995 | C8: =Macro!F8 -> 8739.6 | E8: =LN(C8) -> 9.075619701 | F8: =EXP(HP(E8:E37,D39)) -> 8637.083881
B9: 1996 | C9: =Macro!F9 -> 9292.1 | D9: =(C9/C8-1)*100 -> 6.321799625 | E9: =LN(C9) -> 9.136919856 | F9: 9158.986758
B10: 1997 | C10: =Macro!F10 -> 9816.1 | D10: =(C10/C9-1)*100 -> 5.639198889 | E10: 9.191779174 | F10: 9716.246824
B11: 1998 | C11: =Macro!F11 -> 10285.6 | D11: 4.782958609 | E11: 9.238500138 | F11: 10320.48616
B12: 1999 | C12: =Macro!F12 -> 10788.2 | D12: 4.886443183 | E12: 9.286208223 | F12: 10989.5521
B13: 2000 | C13: =Macro!F13 -> 11537.8 | D13: 6.948332437 | E13: 9.353383881 | F13: 11744.01887
B14: 2001 | C14: =Macro!F14 -> 12026.3 | D14: 4.233909411 | E14: 9.394851197 | F14: 12601.4753
B15: 2002 | C15: =Macro!F15 -> 12752.2 | D15: 6.035937903 | E15: 9.453459085 | F15: 13575.27022
B16: 2003 | C16: =Macro!F16 -> 14198.6 | D16: 11.34235661 | E16: 9.560898647 | F16: 14658.05122
B17: 2004 | C17: =Macro!F17 -> 15738.1 | D17: 10.84261829 | E17: 9.663839803 | F17: 15804.3786
B18: 2005 | C18: =Macro!F18 -> 17589.6 | D18: 11.76444425 | E18: 9.775063097 | F18: 16934.16575
B19: 2006 | C19: =Macro!F19 -> 19182.1 | D19: 9.053645336 | E19: 9.861732831 | F19: 17942.63799
B20: 2007 | C20: =Macro!F20 -> 21556.1 | D20: 12.37612149 | E20: 9.978414118 | F20: 18730.33501
B21: 2008 | C21: =Macro!F21 -> 22384 | D21: 3.840676189 | E21: 10.0161017 | F21: 19235.75366
B22: 2009 | C22: =Macro!F22 -> 18513.9 | D22: -17.28958184 | E22: 9.82627708 | F22: 19497.50695
B23: 2010 | C23: =Macro!F23 -> 17882 | D23: -3.41311123 | E23: 9.791549899 | F23: 19667.59533
B24: 2011 | C24: =Macro!F24 -> 18698.7 | D24: 4.56716251 | E24: 9.836209282 | F24: 19873.41319
B25: 2012 | C25: =Macro!F25 -> 19274.5 | D25: 3.079358458 | E25: 9.866538258 | F25: 20184.20063
B26: 2013 | C26: =Macro!F26 -> 20100.4 | D26: 4.284936055 | E26: 9.908494994 | F26: 20632.6676
B27: 2014 | C27: =Macro!F27 -> 20973.6 | D27: 4.344192155 | E27: 9.951019783 | F27: 21223.80127
B28: 2015 | C28: =Macro!F28 -> 21836.8 | D28: 4.115650151 | E28: 9.991351899 | F28: 21946.02105
B29: 2016 | C29: =Macro!F29 -> 23039.24614 | D29: 5.506512595 | E29: 10.04495439 | F29: 22778.35946
B30: 2017 | C30: =Macro!F30 -> 23996.17778 | D30: 4.153485043 | E30: 10.08564984 | F30: 23693.00213
B31: 2018 | C31: =Macro!F31 -> 24963.75127 | D31: 4.032198336 | E31: 10.1251801 | F31: 24666.67304
B32: 2019 | C32: =Macro!F32 -> 25902.73212 | D32: 3.761377213 | E32: 10.16210373 | F32: 25682.6475
B33: 2020 | C33: =C32*(1+D33/100) -> 26877.03158 | D33: =D32 -> 3.761377213 | E33: 10.19902736 | F33: 26731.72235
B34: 2021 | C34: =C33*(1+D34/100) -> 27887.97812 | D34: =D33 -> 3.761377213 | E34: 10.23595098 | F34: 27810.88197
B35: 2022 | C35: 28936.95018 | D35: 3.761377213 | E35: 10.27287461 | F35: 28921.74304
B36: 2023 | C36: 30025.37803 | D36: 3.761377213 | E36: 10.30979824 | F36: 30068.88558
B37: 2024 | C37: 31154.74575 | D37: 3.761377213 | E37: 10.34672186 | F37: 31258.07772
C39: λ= | D39: 30 | E39: 2020-2024 naudojamas taisyti HP filtro imties kraštų problemą | 2020-2024 used for HP filter's end-points problem
E40: Šaltiniai: | G40: Sources:
E41: =GGfinance!F20 -> Lietuvos statistikos departamentas | G41: =GGfinance!H20 -> Statistics Lithuania
E42: =GGfinance!F21 -> Finansų ministerija | G42: =GGfinance!H21 -> Ministry of Finance
E43: =GGfinance!F22 -> Fiskalinė institucija | G43: =GGfinance!H22 -> Independent fiscal institution
E44: ERS - ekonominės raidos scenarijus | G44: EDS - economic development scenario
E45: Augimo prielaidos | G45: Growth assumptions

Sheet UN
A1: ↖ atgal į turinį | back to content
B3: 8 lentelė. Bedarbių skaičius | D3: Table 8. Number of unemployed
B4: Metai | C4: =Macro!N4 -> Bedarbių skaičius
B5: Year | C5: =Macro!N5 -> Number of unemployed
B6: 1 | C6: 1000 | D6: % | E6: log | F6: 1000
B7: t | C7: UN(t) | D7: (UN(t)/UN(t-1)-1)∙100 | E7: log(UN(t)) | F7: UN*(t)
B8: 1995 | C8: =Macro!N8 -> 486.9995 | E8: =LN(C8) -> 6.188263096 | F8: =EXP(HP(E8:E37,D39)) -> 454.1014648
B9: 1996 | C9: =Macro!N9 -> 441.1335 | D9: =(C9/C8-1)*100 -> -9.418079485 | E9: =LN(C9) -> 6.089347551 | F9: 393.6807738
B10: 1997 | C10: =Macro!N10 -> 322.21575 | D10: =(C10/C9-1)*100 -> -26.95731564 | E10: 5.775221352 | F10: 342.0960258
B11: 1998 | C11: =Macro!N11 -> 221.57475 | D11: -31.23404117 | E11: 5.400760004 | F11: 299.7950244
B12: 1999 | C12: =Macro!N12 -> 244.81 | D12: 10.48641598 | E12: 5.500482399 | F12: 266.052118
B13: 2000 | C13: =Macro!N13 -> 268.7375 | D13: 9.773906295 | E13: 5.593735067 | F13: 237.6793565
B14: 2001 | C14: =Macro!N14 -> 280.975 | D14: 4.553700172 | E14: 5.638265697 | F14: 211.8900661
B15: 2002 | C15: =Macro!N15 -> 211.975 | D15: -24.55734496 | E15: 5.356468343 | F15: 187.6350484
B16: 2003 | C16: =Macro!N16 -> 191.05 | D16: -9.871447105 | E16: 5.252535174 | F16: 165.8351709
B17: 2004 | C17: =Macro!N17 -> 166.515 | D17: -12.84218791 | E17: 5.115085395 | F17: 147.5840425
B18: 2005 | C18: =Macro!N18 -> 126.505 | D18: -24.02786536 | E18: 4.840281833 | F18: 134.0577798
B19: 2006 | C19: =Macro!N19 -> 83.68 | D19: -33.8524169 | E19: 4.427 | F19: 126.4944343
B20: 2007 | C20: =Macro!N20 -> 59.255 | D20: -29.18857553 | E20: 4.081850165 | F20: 125.9432865
B21: 2008 | C21: =Macro!N21 -> 84.28 | D21: 42.23272298 | E21: 4.434144589 | F21: 132.5618676
B22: 2009 | C22: =Macro!N22 -> 207.7025 | D22: 146.4434029 | E22: 5.336106767 | F22: 144.1129372
B23: 2010 | C23: =Macro!N23 -> 268.8675 | D23: 29.44836966 | E23: 5.594218693 | F23: 155.7300404
B24: 2011 | C24: =Macro!N24 -> 225.5275 | D24: -16.11946405 | E24: 5.418442103 | F24: 162.9530496
B25: 2012 | C25: =Macro!N25 -> 193.5975 | D25: -14.15791866 | E25: 5.265781262 | F25: 163.8001849
B26: 2013 | C26: =Macro!N26 -> 168.075 | D26: -13.18327974 | E26: 5.124410308 | F26: 158.6257829
B27: 2014 | C27: =Macro!N27 -> 153.6525 | D27: -8.580990629 | E27: 5.034693559 | F27: 149.2470903
B28: 2015 | C28: =Macro!N28 -> 129.8575 | D28: -15.48624331 | E28: 4.866437695 | F28: 137.8521437
B29: 2016 | C29: =Macro!N29 -> 119.217974 | D29: -8.193231812 | E29: 4.780953532 | F29: 126.4214335
B30: 2017 | C30: =Macro!N30 -> 105.8493343 | D30: -11.21361084 | E30: 4.662016709 | F30: 116.1947557
B31: 2018 | C31: =Macro!N31 -> 96.7919028 | D31: -8.55690931 | E31: 4.572563342 | F31: 107.8253237
B32: 2019 | C32: =Macro!N32 -> 93.07259618 | D32: -3.84258033 | E32: 4.533379793 | F32: 101.4572976
B33: 2020 | C33: 93 | D33: -0.07799951928 | E33: 4.532599493 | F33: 96.86596555
B34: 2021 | C34: 93 | D34: 0 | E34: 4.532599493 | F34: 93.63386369
B35: 2022 | C35: 93 | D35: 0 | E35: 4.532599493 | F35: 91.31188093
B36: 2023 | C36: 93 | D36: 0 | E36: 4.532599493 | F36: 89.49828493
B37: 2024 | C37: 93 | D37: 0 | E37: 4.532599493 | F37: 87.88623761
C39: λ= | D39: 30 | E39: 2020-2024 naudojamas taisyti HP filtro imties kraštų problemą | 2020-2024 used for HP filter's end-points problem
E40: Šaltiniai: | G40: Sources:
E41: =GGfinance!F20 -> Lietuvos statistikos departamentas | G41: =GGfinance!H20 -> Statistics Lithuania
E42: =GGfinance!F21 -> Finansų ministerija | G42: =GGfinance!H21 -> Ministry of Finance
E43: =GGfinance!F22 -> Fiskalinė institucija | G43: =GGfinance!H22 -> Independent fiscal institution
E44: ERS - ekonominės raidos scenarijus | G44: EDS - economic development scenario
E45: Augimo prielaidos | G45: Growth assumptions

Sheet Ataskaitoje naudoti (hidden)
A1: Nr. | B1: Rodiklio pavadinimas | C1: Institucija | D1: BVP procentais
D2: 2015 m. | E2: 2016 m. | F2: 2017 m.
A3: 1. | B3: Valdžios sektoriaus grynasis skolinimas (+)/ skolinimasis (-) | C3: FM | D3: -0.2033993414 | E3: -0.7 | F3: -0.8
A4: 2. | B4: Valdžios sektoriaus grynasis skolinimas (+)/ skolinimasis (-) | C4: IFI | D4: -0.2033993414 | E4: -0.6 | F4: -0.9
A5: 3. | B5: Vienkartinės ir kitos laikinosios priemonės | C5: FM | D5: 0.2539478147 | E5: -0.034 | F5: -0.003
A6: 4. | B6: Produkcijos atotrūkis nuo potencialo | C6: FM | D6: 0.3016225277 | E6: 0.6997685429 | F6: 1.4
A7: 5. | B7: Produkcijos atotrūkis nuo potencialo | C7: IFI | D7: 0.2155866841 | E7: 0.3398806508 | F7: 0.9061731602
A8: 6. | B8: Darbo pajamų atotrūkis | C8: IFI | D8: 2.140191951 | E8: 2.85414371 | F8: 2.965729948
A9: 7. | B9: Pelno atotrūkis | C9: IFI | D9: -2.852853689 | E9: -2.252730439 | F9: -1.32419983
A10: 8. | B10: Vartojimo atotrūkis | C10: IFI | D10: -0.4976804395 | E10: 1.145326925 | F10: 1.279600007
A11: 9. | B11: Bedarbių skaičiaus atotrūkis | C11: IFI | D11: -5.799433723 | E11: -5.697973247 | F11: -8.903518291
A12: 10. | B12: Ciklinė biudžeto dedamoji agreguotas metodas | C12: FM | D12: 0.1245701039 | E12: 0.2890044082 | F12: 0.5782
A13: 11. | B13: Ciklinė biudžeto dedamoji agreguotas metodas | C13: IFI | D13: 0.08903730052 | E13: 0.1403707088 | F13: 0.3742495151
A14: 12. | B14: Ciklinė biudžeto dedamoji detalizuotas metodas | C14: IFI | D14: 0.2555244569 | E14: 0.6059994283 | F14: 0.6886169752
A15: 13. | B15: Struktūrinis VS balansas agreguotas metodas (1-3-10) | C15: FM | D15: -0.58191726 | E15: -0.9 | F15: -1.3
A16: 14. | B16: Struktūrinis VS balansas agreguotas metodas (2-3-11) | C16: IFI | D16: -0.5463844566 | E16: -0.7063707088 | F16: -1.271249515
A17: 15. | B17: Struktūrinis VS balansas detalizuotas metodas (2-3-12) | C17: IFI | D17: -0.712871613 | E17: -1.171999428 | F17: -1.585616975
